bitfinex/quotes_SOLUSD_20230102
["timestamp","ask_amount","ask_price","bid_price","bid_amount"]
[1672683447726,58.91384227,11.188,11.182,22.9235]
[1672683460743,65.4,11.189,11.182,22.9235]
[1672683460955,30.0,11.187,11.182,22.9235]
[1672683461281,58.91384227,11.188,11.182,22.9235]
[1672683461495,1002.27,11.19,11.182,22.9235]
[1672683462316,58.91384227,11.189,11.182,22.9235]
[1672683464746,124.32384227,11.189,11.182,22.9235]
[1672683482846,58.91384227,11.188,11.182,22.9235]
[1672683484725,1002.27,11.19,11.182,22.9235]
[1672683484726,1000.0,11.19,11.183,30.0]
[1672683485049,1000.0,11.19,11.185,30.0]
[1672683486216,1000.0,11.19,11.183,139.6714]
[1672683486402,1000.0,11.19,11.183,164.4452]
[1672683488086,1000.0,11.19,11.183,134.4452]
[1672683490098,963.46058421,11.19,11.184,30.0]
[1672683490411,963.46058421,11.19,11.183,134.4452]
[1672683492822,965.72058421,11.19,11.183,134.4452]
[1672683493235,65.43,11.189,11.183,134.4452]
[1672683496713,1021.38852676,11.19,11.183,134.4452]
[1672683496927,65.41,11.189,11.183,134.4452]
[1672683498712,1021.38852676,11.19,11.183,134.4452]
[1672683503359,1086.79852676,11.19,11.183,134.4452]
[1672683517526,1021.38852676,11.19,11.183,134.4452]
[1672683517714,1086.79852676,11.19,11.183,134.4452]
[1672683519104,1086.79852676,11.19,11.183,24.7738]
[1672683529503,1141.63986939,11.19,11.183,24.7738]
[1672683544206,1141.63986939,11.19,11.182,23.554]
[1672683556819,30.0,11.189,11.182,23.554]
[1672683557025,65.41,11.188,11.182,23.554]
[1672683557241,175.14541173,11.188,11.182,23.554]
[1672683557563,54.8940691,11.187,11.182,23.554]
[1672683567252,120.3040691,11.187,11.182,23.554]
[1672683567769,54.8940691,11.187,11.182,23.554]
[1672683574280,1072.97515047,11.19,11.182,23.554]
[1672683574498,1127.86921957,11.19,11.182,23.554]
[1672683575136,1117.3005622,11.19,11.182,23.554]
[1672683581438,65.41,11.189,11.182,23.554]
[1672683581863,120.3040691,11.189,11.182,23.554]
[1672683583962,54.8940691,11.189,11.182,23.554]
[1672683588780,120.3040691,11.189,11.182,23.554]
[1672683590896,54.8940691,11.189,11.182,23.554]
[1672683591745,1007.56515047,11.19,11.182,23.554]
[1672683592457,1005.30515047,11.19,11.182,23.554]
[1672683592667,963.46058421,11.19,11.182,23.554]
[1672683595081,963.46058421,11.19,11.181,46.70300993]
[1672683597002,963.46058421,11.19,11.18,187.37110993]
[1672683599196,965.74058421,11.19,11.18,187.37110993]
[1672683599821,65.41,11.189,11.18,187.37110993]
[1672683601836,963.46058421,11.19,11.181,46.70300993]
[1672683602258,963.46058421,11.19,11.181,76.70300993]
[1672683604886,65.41,11.189,11.181,76.70300993]
[1672683606669,65.41,11.189,11.181,46.70300993]
[1672683608143,65.41,11.189,11.181,76.70300993]
[1672683609615,65.41,11.189,11.181,46.70300993]
[1672683609828,963.46058421,11.19,11.181,76.70300993]
[1672683612875,963.46058421,11.19,11.181,46.70300993]
[1672683614662,65.41,11.189,11.181,46.70300993]
[1672683620741,965.74058421,11.19,11.181,46.70300993]
[1672683624436,965.74058421,11.19,11.181,30.0]
[1672683624957,65.41,11.189,11.181,30.0]
[1672683627804,65.41,11.189,11.181,76.70300993]
[1672683628942,963.46058421,11.19,11.181,76.70300993]
[1672683630940,65.41,11.189,11.181,76.70300993]
[1672683631585,65.41,11.189,11.181,46.70300993]
[1672683633479,963.46058421,11.19,11.181,76.70300993]
[1672683633880,963.46058421,11.19,11.182,30.0]
[1672683634325,65.41,11.189,11.182,30.0]
[1672683635876,963.46058421,11.19,11.182,30.0]
[1672683636084,963.46058421,11.19,11.181,46.70300993]
[1672683636311,65.41,11.189,11.181,46.70300993]
[1672683636839,65.41,11.189,11.181,315.00300993]
[1672683637030,963.46058421,11.19,11.181,315.00300993]
[1672683637365,965.73058421,11.19,11.181,315.00300993]
[1672683638084,963.46058421,11.19,11.181,315.00300993]
[1672683643233,963.46058421,11.19,11.183,268.3]
[1672683643457,963.46058421,11.19,11.188,46.70300993]
[1672683643887,963.46058421,11.19,11.187,30.0]
[1672683644086,963.46058421,11.19,11.186,46.70300993]
[1672683645981,963.46058421,11.19,11.185,46.70300993]
[1672683646389,963.46058421,11.19,11.185,76.70300993]
[1672683647980,963.46058421,11.19,11.185,30.0]
[1672683648906,963.46058421,11.19,11.184,219.20260993]
[1672683650182,963.46058421,11.19,11.185,30.0]
[1672683653846,913.46058421,11.19,11.187,268.3]
[1672683654270,913.46058421,11.19,11.188,30.0]
[1672683657552,913.46058421,11.19,11.187,268.3]
[1672683658159,913.46058421,11.19,11.188,30.0]
[1672683660382,913.46058421,11.19,11.189,268.3]
[1672683660687,913.46058421,11.19,11.189,298.3]
[1672683661537,913.46058421,11.19,11.189,30.0]
[1672683663094,913.46058421,11.19,11.189,268.3]
[1672683664891,913.33942769,11.19,11.189,268.3]
[1672683665091,913.33942769,11.19,11.188,298.3]
[1672683665831,913.21827045,11.19,11.188,298.3]
[1672683666877,913.09711465,11.19,11.188,298.3]
[1672683667940,912.97595885,11.19,11.188,298.3]
[1672683668342,788.51595885,11.19,11.188,298.3]
[1672683668553,65.34,11.207,11.19,268.3]
[1672683668791,109.9039,11.207,11.193,30.0]
[1672683668985,65.35,11.206,11.193,30.0]
[1672683669188,113.68549468,11.206,11.193,30.0]
[1672683669389,48.33549468,11.205,11.193,30.0]
[1672683669604,65.39,11.204,11.194,159.5088]
[1672683669817,65.39,11.204,11.195,30.0]
[1672683670460,107.19469959,11.204,11.195,30.0]
[1672683670864,107.19469959,11.204,11.196,23.2387]
[1672683672973,30.0,11.203,11.196,23.2387]
[1672683673184,65.4,11.202,11.196,23.2387]
[1672683673392,113.73549468,11.202,11.196,23.2387]
[1672683673604,107.20469959,11.202,11.196,23.2387]
[1672683674771,41.80469959,11.202,11.196,23.2387]
[1672683690432,65.4,11.203,11.196,23.2387]
[1672683691910,78.33549468,11.202,11.188,361.45844975]
[1672683692123,2.27,11.2,11.189,30.0]
[1672683692335,30.0,11.198,11.189,30.0]
[1672683692960,95.43,11.199,11.189,30.0]
[1672683693182,65.43,11.199,11.189,30.0]
[1672683698228,65.43,11.199,11.188,314.90300993]
[1672683698950,65.43,11.199,11.189,30.0]
[1672683702742,65.43,11.199,11.189,76.70300993]
[1672683703791,109.47469959,11.2,11.189,344.90300993]
[1672683703994,44.07469959,11.2,11.189,344.90300993]
[1672683704205,65.4,11.199,11.191,30.0]
[1672683704621,109.47469959,11.2,11.191,30.0]
[1672683705776,109.47469959,11.2,11.19,268.2]
[1672683706635,109.47469959,11.2,11.189,143.81300993]
[1672683706833,109.47469959,11.2,11.189,76.70300993]
[1672683709371,109.47469959,11.2,11.189,344.90300993]
[1672683711352,44.07469959,11.2,11.19,335.31]
[1672683711561,44.07469959,11.2,11.191,30.0]
[1672683713886,44.07469959,11.2,11.19,335.31]
[1672683714198,44.07469959,11.2,11.191,30.0]
[1672683718832,44.07469959,11.2,11.19,337.58]
[1672683721034,2.27,11.2,11.191,30.0]
[1672683721238,2.27,11.2,11.192,335.29]
[1672683721450,2.27,11.2,11.193,30.0]
[1672683724078,2.27,11.2,11.192,335.29]
[1672683725028,2.27,11.2,11.192,268.2]
[1672683726815,2.27,11.2,11.193,30.0]
[1672683727421,2.27,11.2,11.193,97.09]
[1672683728599,2.27,11.2,11.193,67.09]
[1672683728808,2.27,11.2,11.192,335.29]
[1672683729006,2.27,11.2,11.192,268.2]
[1672683730376,2.27,11.2,11.193,30.0]
[1672683730595,2.27,11.2,11.193,365.29]
[1672683730783,2.27,11.2,11.193,298.2]
[1672683731965,2.27,11.2,11.193,30.0]
[1672683732179,2.27,11.2,11.193,365.29]
[1672683732386,2.27,11.2,11.193,298.2]
[1672683732787,2.27,11.2,11.193,268.2]
[1672683733331,2.27,11.2,11.194,30.0]
[1672683733547,6.68537067,11.204,11.197,46.70300993]
[1672683733741,137.557,11.209,11.198,67.06]
[1672683733943,6.68537067,11.208,11.198,91.3796]
[1672683734679,57.94044663,11.208,11.198,91.3796]
[1672683735096,36.68537067,11.207,11.198,91.3796]
[1672683735523,6.68537067,11.206,11.198,91.3796]
[1672683737540,105.4765159,11.206,11.198,91.3796]
[1672683738691,30.0,11.205,11.198,91.3796]
[1672683739104,51.25507596,11.205,11.198,91.3796]
[1672683740563,6.68537067,11.206,11.198,91.3796]
[1672683741103,51.25507596,11.208,11.199,30.0]
[1672683741304,107.557,11.209,11.199,30.0]
[1672683741514,58.90606927,11.21,11.199,30.0]
[1672683742244,124.31606927,11.21,11.199,30.0]
[1672683742455,76.78,11.21,11.199,30.0]
[1672683742995,11.37,11.21,11.199,30.0]
[1672683743204,18.05537067,11.21,11.198,359.5796]
[1672683743400,11.37,11.21,11.2,30.0]
[1672683744368,11.37,11.21,11.201,67.04]
[1672683745939,51.64935914,11.215,11.203,30.0]
[1672683746157,8.2227,11.218,11.204,67.02]
[1672683746345,116.04761847,11.219,11.204,452.3691]
[1672683746565,95.37,11.218,11.205,30.0]
[1672683746772,181.41761847,11.219,11.207,298.2]
[1672683746988,14.27811847,11.219,11.208,67.0]
[1672683747194,14.27811847,11.219,11.209,298.2]
[1672683747416,0.00700633,11.226,11.211,268.2]
[1672683747741,9.06,11.24,11.213,268.2]
[1672683747742,2.26,11.23,11.213,268.2]
[1672683747941,2.26,11.23,11.221,30.0]
[1672683748150,2.26,11.23,11.221,96.92]
[1672683748358,1.76,11.23,11.221,96.92]
[1672683749315,1.76,11.23,11.221,66.92]
[1672683749504,10.85,11.23,11.22,265.6]
[1672683749717,70.36232089,11.23,11.217,117.7922]
[1672683749928,134.57140328,11.23,11.217,117.7922]
[1672683750142,30.0,11.229,11.215,265.6]
[1672683750371,11.36,11.22,11.215,265.6]
[1672683750768,59.51232089,11.219,11.215,265.6]
[1672683750988,59.51232089,11.219,11.204,46.70300993]
[1672683751205,2.27,11.21,11.204,46.70300993]
[1672683751417,2.27,11.21,11.203,46.70300993]
[1672683751610,2.27,11.21,11.204,76.70300993]
[1672683751824,2.27,11.21,11.204,46.70300993]
[1672683752366,2.27,11.21,11.205,30.0]
[1672683752560,30.0,11.217,11.205,30.0]
[1672683752770,45.71213588,11.215,11.204,113.72300993]
[1672683752980,2.27,11.21,11.204,46.70300993]
[1672683754659,2.27,11.21,11.205,46.70300993]
[1672683754988,53.21544027,11.215,11.205,46.70300993]
[1672683755414,93.97025167,11.214,11.205,46.70300993]
[1672683755934,45.71213588,11.213,11.205,46.70300993]
[1672683756146,93.97025167,11.213,11.205,46.70300993]
[1672683756550,45.71213588,11.212,11.205,46.70300993]
[1672683757918,93.97025167,11.212,11.205,46.70300993]
[1672683758861,45.71213588,11.211,11.205,46.70300993]
[1672683760349,45.71213588,11.211,11.203,93.25844975]
[1672683760350,45.71213588,11.211,11.206,46.70300993]
[1672683762561,45.71213588,11.211,11.206,46.51304493]
[1672683766867,45.60215383,11.211,11.206,46.51304493]
[1672683767397,30.0,11.217,11.204,30.0]
[1672683767714,2.27,11.21,11.203,123.25844975]
[1672683767914,2.16001795,11.21,11.203,93.25844975]
[1672683768854,2.05002934,11.21,11.204,30.0]
[1672683769069,2.05002934,11.21,11.203,93.25844975]
[1672683770018,1.94004565,11.21,11.203,93.25844975]
[1672683770951,1.83006032,11.21,11.203,93.25844975]
[1672683771160,1.83006032,11.21,11.204,93.25844975]
[1672683772010,1.72007663,11.21,11.204,93.25844975]
[1672683772330,1.72007663,11.21,11.203,123.25844975]
[1672683772536,1.72007663,11.21,11.203,93.25844975]
[1672683772773,1.61009622,11.21,11.204,30.0]
[1672683773153,1.61009622,11.21,11.204,190.27844975]
[1672683773378,1.61009622,11.21,11.204,93.25844975]
[1672683773799,1.50011581,11.21,11.204,93.25844975]
[1672683774646,1.50011581,11.21,11.203,160.28844975]
[1672683774838,1.39014196,11.21,11.204,30.0]
[1672683775059,1.39014196,11.21,11.203,160.28844975]
[1672683775367,1.39014196,11.21,11.205,30.0]
[1672683775681,30.0,11.215,11.204,93.25844975]
[1672683775885,2.15002615,11.21,11.204,93.25844975]
[1672683776096,2.15002615,11.21,11.205,67.02]
[1672683776300,37.50330439,11.215,11.205,30.0]
[1672683776534,37.50330439,11.215,11.204,67.02]
[1672683776731,2.16002123,11.21,11.204,67.02]
[1672683776958,2.27,11.21,11.204,67.02]
[1672683777267,2.27,11.21,11.204,160.27844975]
[1672683777883,2.16001959,11.21,11.204,160.27844975]
[1672683778825,2.05003098,11.21,11.204,30.0]
[1672683779156,2.05003098,11.21,11.203,160.28844975]
[1672683779371,2.05003098,11.21,11.202,22.5334]
[1672683779684,41.14003098,11.21,11.202,22.5334]
[1672683779892,89.87168371,11.21,11.202,22.5334]
[1672683780530,128.06605438,11.21,11.202,22.5334]
[1672683780741,169.81654621,11.21,11.202,22.5334]
[1672683783342,37.50330439,11.209,11.197,67.06]
[1672683783560,37.50330439,11.209,11.195,67.08]
[1672683783768,30.0,11.207,11.195,67.08]
[1672683783991,30.0,11.207,11.194,67.08]
[1672683784187,2.26,11.2,11.194,67.08]
[1672683787799,2.26,11.2,11.19,265.6]
[1672683787800,61.64060948,11.2,11.19,265.6]
[1672683788094,30.0,11.198,11.19,265.6]
[1672683788281,30.0,11.198,11.191,67.1]
[1672683788495,93.39937777,11.198,11.191,67.1]
[1672683788913,93.28926761,11.198,11.191,67.1]
[1672683789344,93.28926761,11.198,11.19,332.71]
[1672683789554,93.28926761,11.198,11.19,379.3964]
[1672683789766,93.17915745,11.198,11.19,379.3964]
[1672683790175,143.46976693,11.198,11.19,379.3964]
[1672683790385,113.68998725,11.198,11.19,379.3964]
[1672683790595,2.28,11.2,11.19,379.3964]
[1672683790810,30.0,11.199,11.191,46.6864]
[1672683791012,30.0,11.199,11.192,67.09]
[1672683791226,30.0,11.199,11.191,113.7864]
[1672683791650,146.49887577,11.199,11.191,113.7864]
[1672683791867,146.49887577,11.199,11.191,46.6864]
[1672683794503,146.49887577,11.199,11.191,113.7864]
[1672683795328,85.10060948,11.199,11.191,113.7864]
[1672683796286,55.10060948,11.199,11.191,113.7864]
[1672683796807,30.0,11.198,11.191,113.7864]
[1672683797018,30.0,11.198,11.191,46.6864]
[1672683797334,85.10060948,11.198,11.191,46.6864]
[1672683797542,85.10060948,11.198,11.191,113.7864]
[1672683797964,84.99049932,11.198,11.191,113.7864]
[1672683798179,55.10060948,11.198,11.191,113.7864]
[1672683798811,61.39826629,11.199,11.198,80.3566642]
[1672683806067,30.0,11.201,11.198,80.3566642]
[1672683807642,132.7278394,11.201,11.198,80.3566642]
[1672683809738,174.36198936,11.201,11.198,80.3566642]
[1672683812480,144.36198936,11.201,11.198,80.3566642]
[1672683822045,30.0,11.2,11.198,80.3566642]
[1672683822464,56.08658447,11.199,11.198,80.3566642]
[1672683823607,102.7278394,11.199,11.198,80.3566642]
[1672683827713,145.48946358,11.199,11.198,80.3566642]
[1672683827923,145.3793715,11.199,11.198,80.3566642]
[1672683828134,60.1133358,11.198,11.191,67.1]
[1672683828346,120.30704563,11.198,11.187,67.12]
[1672683828553,30.0,11.196,11.186,213.7406]
[1672683828974,156.65427473,11.195,11.186,213.7406]
[1672683829186,156.65427473,11.195,11.186,276.99904975]
[1672683829808,60.19370983,11.194,11.186,276.99904975]
[1672683830347,60.19370983,11.194,11.186,183.7406]
[1672683830542,104.99245672,11.194,11.186,183.7406]
[1672683831186,156.75483601,11.194,11.186,183.7406]
[1672683831379,156.75483601,11.194,11.186,276.99904975]
[1672683832330,156.75483601,11.194,11.186,183.7406]
[1672683835709,60.19370983,11.193,11.186,183.7406]
[1672683836547,104.99245672,11.193,11.186,183.7406]
[1672683843049,102.0329,11.198,11.187,30.0]
[1672683843259,102.0329,11.198,11.188,67.12]
[1672683843468,60.19370983,11.197,11.189,30.0]
[1672683843689,60.19370983,11.197,11.19,67.11]
[1672683844527,60.19370983,11.197,11.189,30.0]
[1672683844834,60.19370983,11.197,11.19,67.11]
[1672683845467,60.19370983,11.197,11.189,30.0]
[1672683845694,60.19370983,11.197,11.19,67.11]
[1672683848307,41.85208022,11.199,11.19,67.11]
[1672683848624,41.85208022,11.199,11.189,30.0]
[1672683848840,41.85208022,11.199,11.19,67.11]
[1672683850088,41.85208022,11.199,11.189,30.0]
[1672683850735,102.04579005,11.199,11.189,30.0]
[1672683851994,41.85208022,11.198,11.189,30.0]
[1672683853133,102.04579005,11.198,11.189,30.0]
[1672683853889,102.04579005,11.198,11.188,67.12]
[1672683854409,41.85208022,11.198,11.188,67.12]
[1672683857149,41.85208022,11.198,11.188,30.0]
[1672683857360,102.04579005,11.198,11.188,30.0]
[1672683858527,102.04579005,11.198,11.189,67.11]
[1672683858726,102.04579005,11.198,11.188,97.12]
[1672683860106,102.04579005,11.198,11.188,67.12]
[1672683860513,30.0,11.197,11.188,67.12]
[1672683860725,71.85208022,11.197,11.187,67.12]
[1672683861049,186.036404,11.197,11.187,67.12]
[1672683872197,186.036404,11.197,11.186,116.6106]
[1672683874724,186.036404,11.197,11.188,30.0]
[1672683874916,186.036404,11.197,11.186,116.6106]
[1672683878398,41.85208022,11.196,11.186,116.6106]
[1672683878613,49.81253818,11.196,11.186,116.6106]
[1672683878820,148.3298657,11.195,11.186,116.6106]
[1672683879008,201.28956643,11.195,11.186,116.6106]
[1672683879219,30.0,11.193,11.186,116.6106]
[1672683879634,193.32910847,11.193,11.186,116.6106]
[1672683888291,163.32910847,11.193,11.186,116.6106]
[1672683891971,30.0,11.192,11.186,116.6106]
[1672683893450,193.32910847,11.192,11.186,116.6106]
[1672683894273,163.32910847,11.192,11.186,116.6106]
[1672683895869,30.0,11.191,11.186,116.6106]
[1672683896702,105.1929526,11.192,11.186,116.6106]
[1672683901210,105.1929526,11.192,11.177,67.18]
[1672683901436,2.27,11.19,11.177,178.3208]
[1672683901958,52.71635646,11.189,11.177,178.3208]
[1672683902185,52.71635646,11.189,11.178,111.1408]
[1672683902489,52.71635646,11.189,11.179,67.17]
[1672683902689,52.71635646,11.189,11.179,178.3108]
[1672683910695,52.71635646,11.189,11.18,2.26]
[1672683910904,52.71635646,11.189,11.181,67.16]
[1672683913111,30.0,11.191,11.181,67.16]
[1672683913328,51.32968979,11.19,11.181,184.8748]
[1672683914256,53.58968979,11.19,11.181,184.8748]
[1672683914583,53.58968979,11.19,11.181,117.7148]
[1672683914984,51.32968979,11.189,11.181,117.7148]
[1672683918674,51.32968979,11.189,11.182,67.15]
[1672683922249,51.32968979,11.189,11.181,117.7148]
[1672683925385,58.46142715,11.188,11.181,117.7148]
[1672683925591,30.0,11.187,11.181,117.7148]
[1672683926022,88.46142715,11.187,11.181,117.7148]
[1672683928557,58.46142715,11.187,11.181,117.7148]
[1672683929624,109.79111694,11.187,11.181,117.7148]
[1672683933612,58.11030831,11.186,11.181,117.7148]
[1672683934018,116.57173546,11.186,11.181,117.7148]
[1672683934545,58.11030831,11.185,11.181,117.7148]
[1672683937504,58.11030831,11.185,11.182,67.15]
[1672683938030,58.11030831,11.185,11.181,117.7148]
[1672683952119,116.57173546,11.185,11.181,117.7148]
[1672683952437,58.11030831,11.184,11.181,117.7148]
[1672683953184,58.11030831,11.184,11.177,67.18]
[1672683953405,58.11030831,11.184,11.175,182.0445]
[1672683953616,58.11030831,11.184,11.176,30.0]
[1672683953814,58.11030831,11.184,11.178,30.0]
[1672683954030,58.11030831,11.184,11.179,67.17]
[1672683954554,58.11030831,11.184,11.178,67.18]
[1672683955491,58.11030831,11.184,11.177,67.18]
[1672683955711,58.11030831,11.184,11.178,30.0]
[1672683956221,58.11030831,11.184,11.179,67.17]
[1672683956669,58.11030831,11.184,11.18,30.0]
[1672683957504,58.11030831,11.184,11.179,67.17]
[1672683957925,58.11030831,11.184,11.178,67.18]
[1672683958441,116.57173546,11.184,11.178,67.18]
[1672683958651,116.57173546,11.184,11.177,118.1514]
[1672683959379,58.11030831,11.183,11.177,118.1514]
[1672683962226,58.11030831,11.183,11.173,67.21]
[1672683962438,58.11030831,11.183,11.174,30.0]
[1672683962762,58.11030831,11.183,11.175,67.2]
[1672683964215,55.61030831,11.183,11.176,30.0]
[1672683964427,55.61030831,11.183,11.177,67.18]
[1672683964637,57.89364164,11.182,11.175,67.2]
[1672683967484,116.35506879,11.182,11.175,67.2]
[1672683967900,57.89364164,11.181,11.175,67.2]
[1672683970749,51.32968979,11.184,11.176,30.0]
[1672683970939,109.22333143,11.184,11.177,67.18]
[1672683971588,109.22333143,11.184,11.178,30.0]
[1672683972748,30.0,11.198,11.178,30.0]
[1672683972933,136.2217,11.196,11.18,2.26]
[1672683973274,136.2217,11.196,11.182,30.0]
[1672683973275,42.71001876,11.192,11.182,30.0]
[1672683973461,42.71001876,11.192,11.184,30.0]
[1672683973669,54.08030831,11.191,11.184,30.0]
[1672683975474,54.08030831,11.191,11.183,111.9884]
[1672683976841,51.58030831,11.191,11.183,111.9884]
[1672683977051,51.58030831,11.191,11.184,30.0]
[1672683978314,51.58030831,11.191,11.183,111.9884]
[1672683979351,106.14173546,11.191,11.183,111.9884]
[1672683979777,148.85175422,11.191,11.183,111.9884]
[1672683980104,2.28,11.19,11.183,111.9884]
[1672683986069,148.85175422,11.191,11.183,111.9884]
[1672683986279,148.85175422,11.191,11.185,30.0]
[1672683986503,148.85175422,11.191,11.184,67.14]
[1672683988920,148.85175422,11.191,11.183,111.9884]
[1672683989771,2.26,11.19,11.183,111.9884]
[1672683989962,32.26,11.19,11.183,111.9884]
[1672683990173,86.82142715,11.19,11.183,111.9884]
[1672683991371,140.68506879,11.19,11.183,111.9884]
[1672683991567,110.68506879,11.19,11.183,111.9884]
[1672683995878,110.68506879,11.19,11.183,134.6158]
[1672684007672,30.0,11.189,11.183,134.6158]
[1672684008067,181.13508755,11.189,11.183,134.6158]
[1672684008275,151.13508755,11.189,11.183,134.6158]
[1672684012190,151.13508755,11.189,11.185,30.0]
[1672684012502,151.13508755,11.189,11.183,201.7658]
[1672684030900,151.13508755,11.189,11.183,134.6158]
[1672684035742,30.0,11.188,11.183,134.6158]
[1672684036139,108.42506879,11.187,11.183,134.6158]
[1672684036454,53.86364164,11.186,11.183,134.6158]
[1672684036888,53.86364164,11.186,11.183,22.6274]
[1672684040046,108.42506879,11.186,11.183,22.6274]
[1672684040447,53.86364164,11.185,11.183,22.6274]
[1672684041198,108.42506879,11.185,11.183,22.6274]
[1672684041616,53.86364164,11.184,11.183,22.6274]
[1672684042147,53.86364164,11.184,11.182,23.3618]
[1672684056757,108.42506879,11.184,11.166,295.6]
[1672684056958,108.42506879,11.184,11.173,30.0]
[1672684057383,108.42506879,11.184,11.175,30.0]
[1672684057590,108.42506879,11.184,11.176,67.19]
[1672684057916,108.42506879,11.184,11.177,30.0]
[1672684058104,42.71001876,11.188,11.178,67.18]
[1672684058315,42.71001876,11.188,11.18,2.27]
[1672684058526,108.42506879,11.188,11.181,67.16]
[1672684058757,108.42506879,11.188,11.182,30.0]
[1672684059596,108.42506879,11.188,11.181,120.6657]
[1672684060213,108.42506879,11.188,11.181,90.6657]
[1672684060638,151.13508755,11.188,11.181,23.5057]
[1672684061800,151.13508755,11.188,11.182,30.0]
[1672684062015,7.8226,11.194,11.182,97.15]
[1672684062220,42.71001876,11.192,11.183,116.4835]
[1672684062532,30.0,11.191,11.184,24.3731]
[1672684063065,185.38175387,11.191,11.184,24.3731]
[1672684063809,2.27,11.19,11.184,24.3731]
[1672684064204,114.94173511,11.19,11.184,24.3731]
[1672684072515,112.67173511,11.19,11.184,24.3731]
[1672684080509,30.0,11.189,11.184,24.3731]
[1672684080919,58.80809347,11.188,11.184,24.3731]
[1672684081125,30.0,11.187,11.184,24.3731]
[1672684081540,112.67173511,11.188,11.184,24.3731]
[1672684081961,30.0,11.186,11.184,24.3731]
[1672684082294,53.86364164,11.187,11.183,139.0804]
[1672684084059,112.67173511,11.187,11.183,139.0804]
[1672684092609,42.71001876,11.186,11.177,67.18]
[1672684092803,42.71001876,11.186,11.175,22.9902]
[1672684093013,116.25030145,11.185,11.176,67.19]
[1672684093347,146.25030145,11.184,11.176,67.19]
[1672684093556,146.25030145,11.184,11.174,67.2]
[1672684093768,116.25030145,11.183,11.174,67.2]
[1672684094379,116.25030145,11.183,11.174,91.1335]
[1672684098815,62.38666007,11.182,11.174,91.1335]
[1672684099005,30.0,11.181,11.174,91.1335]
[1672684100603,116.25030171,11.182,11.174,91.1335]
[1672684101552,62.38666007,11.181,11.174,91.1335]
[1672684102283,116.25030171,11.181,11.174,91.1335]
[1672684108990,53.86364164,11.181,11.174,91.1335]
[1672684115534,38.0077,11.185,11.174,91.1335]
[1672684115723,8.0077,11.185,11.174,91.1335]
[1672684115928,30.0,11.183,11.174,91.1335]
[1672684116372,57.93697497,11.182,11.174,91.1335]
[1672684124035,57.93697497,11.182,11.174,23.9335]
[1672684124261,57.93697497,11.182,11.175,67.2]
[1672684124676,57.93697497,11.182,11.174,91.1335]
[1672684133511,45.78854624,11.184,11.174,91.1335]
[1672684133839,57.93697497,11.183,11.174,91.1335]
[1672684134048,30.0,11.182,11.174,91.1335]
[1672684134574,57.93697497,11.182,11.174,91.1335]
[1672684136874,57.93697497,11.182,11.174,23.9335]
[1672684138141,57.93697497,11.182,11.174,23.83060899]
[1672684139281,57.93697497,11.182,11.175,67.2]
[1672684139492,57.93697497,11.182,11.174,23.83060899]
[1672684140349,57.93697497,11.182,11.173,67.21]
[1672684141933,57.85160552,11.182,11.174,30.0]
[1672684142460,57.85160552,11.182,11.173,67.21]
[1672684146643,120.25979349,11.182,11.173,67.21]
[1672684156109,2.27,11.18,11.172,90.769]
[1672684156518,122.60776426,11.18,11.172,90.769]
[1672684159055,120.33776426,11.18,11.172,90.769]
[1672684159273,57.92957629,11.18,11.173,30.0]
[1672684159590,57.92957629,11.18,11.175,30.0]
[1672684159785,57.92957629,11.18,11.174,67.2]
[1672684161687,62.40818797,11.183,11.174,67.2]
[1672684161999,57.92957629,11.184,11.175,30.0]
[1672684164113,57.92957629,11.184,11.174,67.2]
[1672684170409,57.92957629,11.184,11.173,97.21]